bitfinex/quotes_ETHUSD_20250626
["timestamp","ask_amount","ask_price","bid_price","bid_amount"]
[1750906246292,11.76504286,2466.2,2466.1,0.2024]
[1750906246602,11.76504286,2466.2,2465.9,0.2024]
[1750906248273,0.95994286,2466.1,2465.9,0.2024]
[1750906248474,1.768,2466.0,2465.9,4.25771448]
[1750906248677,1.768,2466.3,2466.2,4.0546967]
[1750906248908,1.768,2466.4,2466.3,4.05455463]
[1750906249107,1.768,2466.4,2466.2,4.2571459]
[1750906249408,2.72882821,2466.4,2466.3,4.05465677]
[1750906249612,1.768,2466.4,2466.3,4.05465677]
[1750906250421,1.768,2466.4,2466.3,4.885843]
[1750906250917,10.96170112,2466.7,2466.3,1.63598623]
[1750906251117,6.707,2466.8,2466.7,4.05399927]
[1750906251319,8.475,2466.8,2466.7,4.05399927]
[1750906251632,7.66880491,2466.9,2466.8,4.05383492]
[1750906251798,7.66780491,2467.0,2466.9,4.05367059]
[1750906251985,9.43580491,2467.0,2466.9,4.05367059]
[1750906252191,2.72980491,2467.0,2466.9,4.25607059]
[1750906252386,0.96180491,2467.1,2467.0,4.05350628]
[1750906252606,0.96180491,2467.2,2467.1,4.05334198]
[1750906252807,1.768,2467.3,2467.2,4.05317769]
[1750906253221,0.96180491,2467.4,2467.2,4.05317769]
[1750906253222,0.96192709,2467.4,2467.2,0.8291]
[1750906253413,1.768,2467.4,2467.3,4.05297051]
[1750906253824,2.72992709,2467.4,2467.3,4.25537051]
[1750906253991,1.768,2467.4,2467.3,4.25537051]
[1750906254190,2.72992709,2467.4,2467.3,4.25537051]
[1750906254402,0.96192709,2467.5,2467.4,4.05284915]
[1750906254603,0.96192709,2467.9,2467.4,0.91373197]
[1750906254805,10.0,2468.1,2467.8,4.05219223]
[1750906255009,0.96195563,2468.0,2467.8,4.05219223]
[1750906255225,0.96195563,2467.9,2467.8,4.05219223]
[1750906255447,0.96195563,2468.2,2468.0,4.05180191]
[1750906255607,0.96195563,2468.1,2468.0,4.05180191]
[1750906255918,2.5599,2468.3,2467.8,4.05219223]
[1750906255919,10.81195563,2468.2,2467.9,4.0519569]
[1750906256127,10.0,2468.2,2467.9,4.0519569]
[1750906256640,1.767,2468.1,2468.0,4.05186385]
[1750906256811,1.767,2468.1,2468.0,4.45705024]
[1750906257139,6.707,2468.7,2468.3,4.05126653]
[1750906257435,9.728,2468.9,2468.5,4.05099673]
[1750906257436,1.767,2468.6,2468.5,4.05099673]
[1750906257645,1.767,2468.6,2468.3,4.05131997]
[1750906257929,2.5366,2468.6,2468.2,4.05142783]
[1750906258099,2.79026,2468.6,2468.1,0.7738]
[1750906258428,10.0,2468.5,2467.9,4.05192029]
[1750906258627,10.0,2468.5,2468.0,4.05182422]
[1750906258828,10.0,2468.5,2467.9,4.05196074]
[1750906258997,1.02326,2468.6,2468.0,4.05184928]
[1750906259325,1.767,2468.5,2467.8,4.82593024]
[1750906259532,1.767,2468.5,2467.7,4.05235644]
[1750906260229,1.767,2468.5,2467.8,4.05216874]
[1750906260418,1.767,2468.5,2467.9,4.05202804]
[1750906260736,1.767,2468.5,2468.0,4.05185119]
[1750906260901,1.767,2468.4,2468.1,4.05155582]
[1750906261304,1.767,2468.4,2468.0,4.05179085]
[1750906261526,1.767,2468.4,2467.7,4.05235644]
[1750906261741,1.767,2468.3,2468.2,4.05144392]
[1750906262132,10.7559,2468.8,2468.3,4.05135272]
[1750906262331,10.0,2468.6,2468.2,4.05146406]
[1750906262533,10.0,2468.6,2467.8,0.8238]
[1750906262740,10.0,2468.4,2467.6,4.85259906]
[1750906263031,0.7854,2468.3,2467.6,4.05239906]
[1750906263215,1.767,2468.2,2467.8,4.05207431]
[1750906263632,1.767,2468.1,2467.8,0.81044249]
[1750906263814,3.264383,2468.8,2468.1,4.05160998]
[1750906263815,1.767,2468.2,2468.1,4.05160998]
[1750906264327,0.7854,2468.6,2468.2,4.05152544]
[1750906264527,1.767,2468.2,2468.1,0.2024]
[1750906264832,1.767,2468.2,2467.5,4.85284871]
[1750906265029,1.767,2468.2,2468.1,0.2024]
[1750906265437,1.767,2468.2,2468.1,4.25409968]
[1750906266132,1.767,2468.2,2468.1,0.2024]
[1750906266298,0.7854,2468.6,2468.1,0.2024]
[1750906266507,1.766,2468.5,2468.2,4.05143242]
[1750906266752,1.766,2468.5,2468.4,0.2024]
[1750906268225,12.80851831,2468.5,2468.4,0.2024]
[1750906268425,13.76690144,2468.5,2468.4,0.2024]
[1750906268624,0.7565,2468.4,2467.8,4.05205095]
[1750906268814,1.71488313,2468.4,2468.2,0.2024]
[1750906269526,1.71488313,2468.4,2467.8,4.05213746]
[1750906269733,10.783,2468.3,2468.0,0.2024]
[1750906270265,6.714,2468.2,2468.0,0.2024]
[1750906270429,0.8208,2468.1,2467.8,0.2024]
[1750906270626,1.766,2468.0,2467.8,0.2024]
[1750906271839,0.8208,2468.1,2467.8,0.2024]
[1750906272042,1.766,2468.0,2467.7,4.05229068]
[1750906272244,1.766,2468.0,2467.9,0.2024]
[1750906275646,0.767,2468.3,2467.9,0.2024]
[1750906275981,1.766,2468.2,2467.9,0.2024]
[1750906276155,1.766,2468.1,2468.0,4.05186007]
[1750906276355,0.767,2468.5,2468.1,0.2024]
[1750906276569,1.766,2468.4,2468.1,4.25403427]
[1750906276765,11.766,2468.4,2468.1,0.2024]
[1750906277084,1.773,2468.4,2468.3,0.2024]
[1750906277281,1.773,2468.5,2468.3,4.25371028]
[1750906277488,1.773,2468.5,2468.3,0.2024]
[1750906277653,1.773,2468.5,2468.3,4.25375489]
[1750906277981,1.773,2468.5,2468.3,0.2024]
[1750906278285,1.773,2468.5,2468.4,4.05120725]
[1750906278989,1.773,2468.5,2468.4,4.88440725]
[1750906279182,10.96155151,2468.8,2468.4,4.88440725]
[1750906279390,2.73455151,2468.7,2468.5,4.05103384]
[1750906279554,2.73455151,2468.7,2468.4,0.8332]
[1750906279755,0.96155151,2468.7,2468.6,0.2024]
[1750906279951,4.80330666,2468.7,2468.6,0.2024]
[1750906280185,5.57960666,2468.7,2467.9,0.8332]
[1750906280375,0.96155151,2468.6,2468.3,0.2024]
[1750906280687,0.7763,2468.4,2468.3,0.2024]
[1750906280986,11.94025151,2468.4,2468.0,0.2024]
[1750906281188,0.96155151,2468.3,2468.0,0.2024]
[1750906281498,2.73455151,2468.2,2468.0,0.2024]
[1750906281692,0.96155151,2468.1,2468.0,0.2024]
[1750906282187,0.96155151,2468.1,2466.4,4.88765972]
[1750906282188,0.7763,2467.7,2466.4,4.88765972]
[1750906282393,10.0,2467.5,2467.1,4.05320118]
[1750906282561,2.73455151,2467.4,2467.2,4.45836293]
[1750906282899,1.773,2467.4,2467.2,0.40532012]
[1750906283058,0.96337845,2467.3,2467.2,0.40532012]
[1750906283260,1.773,2467.4,2467.2,0.40532012]
[1750906283459,0.96337079,2467.3,2466.8,4.05382907]
[1750906283658,0.96337079,2467.3,2467.0,4.0534971]
[1750906284484,0.96337079,2467.3,2466.7,0.8138]
[1750906284682,0.96337079,2467.4,2467.2,4.05317769]
[1750906284891,1.773,2467.3,2467.2,4.05317769]
[1750906285098,1.773,2467.3,2467.2,4.86384152]
[1750906285825,1.773,2467.3,2467.2,0.81066383]
[1750906287202,1.773,2467.3,2466.8,4.0537662]
[1750906287412,1.773,2467.3,2466.9,4.05366859]
[1750906288215,1.773,2467.3,2466.8,4.0537547]
[1750906288517,1.773,2467.3,2466.9,4.05360119]
[1750906289085,1.773,2467.3,2467.0,4.05336843]
[1750906289284,1.773,2467.3,2467.1,0.40533684]
[1750906289486,1.773,2467.3,2467.1,4.45866874]
[1750906290009,1.773,2467.3,2467.1,0.40533684]
[1750906290386,1.773,2467.3,2467.1,1.15533684]
[1750906290690,1.773,2467.3,2467.1,0.75]
[1750906291016,10.0,2467.5,2467.1,4.80333094]
[1750906291181,1.773,2467.4,2467.2,4.0531444]
[1750906291386,1.773,2467.4,2467.2,4.05316738]
[1750906291611,1.773,2467.3,2467.2,4.93883275]
[1750906292089,1.773,2467.3,2467.2,1.08806537]
[1750906292316,1.773,2467.3,2467.2,5.14124306]
[1750906292518,10.0,2467.5,2467.2,5.14124306]
[1750906292814,1.773,2467.4,2467.3,4.05299291]
[1750906293287,1.773,2467.4,2467.3,4.25539291]
[1750906293621,1.773,2467.4,2467.3,0.2024]
[1750906299096,0.7551,2467.3,2466.7,4.05384984]
[1750906299425,15.97327796,2467.3,2466.8,0.2024]
[1750906299629,0.96275763,2467.2,2466.8,0.2024]
[1750906299817,6.737,2467.1,2466.8,0.2024]
[1750906303129,1.773,2467.0,2466.8,0.2024]
[1750906303526,1.773,2467.0,2466.8,0.83105435]
[1750906303739,1.773,2467.0,2466.9,0.2024]
[1750906306059,1.773,2467.0,2466.9,4.25607059]
[1750906308236,1.773,2467.0,2466.9,5.00957059]
[1750906309853,1.781,2467.1,2467.0,4.05341888]
[1750906310387,1.781,2467.1,2466.9,0.2024]
[1750906311172,2.74598844,2467.1,2466.9,0.2024]
[1750906311475,1.781,2467.1,2466.9,0.2024]
[1750906311781,0.8321,2467.0,2466.9,0.2024]
[1750906312570,1.79708844,2467.0,2466.5,4.05423659]
[1750906312770,0.96498844,2466.9,2466.8,0.2024]
[1750906313147,1.79708844,2467.0,2466.8,0.2024]
[1750906316481,12.82739728,2467.0,2466.2,0.7827]
[1750906316697,11.16738844,2466.9,2466.5,0.2024]
[1750906316852,0.96498844,2466.8,2466.5,0.2024]
[1750906317180,0.7798,2466.6,2466.5,0.2024]
[1750906317383,2.5608,2466.6,2466.5,0.2024]
[1750906317950,10.0,2466.5,2465.6,0.761]
[1750906318171,1.94718844,2466.4,2465.9,0.2024]
[1750906318377,7.68698844,2466.3,2465.9,0.2024]
[1750906318784,11.74478844,2466.2,2465.9,0.2024]
[1750906318981,1.781,2466.1,2465.9,0.2024]
[1750906319151,2.74598844,2466.1,2465.9,0.2024]
[1750906319352,1.781,2466.1,2465.9,0.2024]
[1750906319590,10.7798,2466.2,2465.9,0.2024]
[1750906319888,9.725,2466.3,2466.2,4.05482118]
[1750906320082,9.725,2466.3,2466.2,0.48158212]
[1750906320388,9.725,2466.3,2466.2,4.5364033]
[1750906321594,0.7798,2466.9,2466.2,0.48158212]
[1750906321881,1.781,2466.8,2466.6,4.05406333]
[1750906322062,1.781,2466.8,2466.6,4.05403668]
[1750906322264,0.98077877,2467.2,2466.7,0.2024]
[1750906322463,18.51,2467.1,2466.7,0.2024]
[1750906322687,0.96240538,2467.0,2466.7,0.2024]
[1750906323110,1.781,2466.9,2466.7,0.2024]
[1750906323276,11.781,2466.9,2466.7,0.2024]
[1750906324591,1.781,2466.8,2466.7,0.2024]
[1750906325091,1.781,2466.8,2466.7,0.6280527]
[1750906325288,1.781,2466.8,2466.7,4.68205197]
[1750906325597,1.781,2466.8,2466.7,0.6280527]
[1750906325914,1.781,2466.8,2466.7,4.68205094]
[1750906326506,1.781,2466.9,2466.8,4.05382124]
[1750906326718,1.781,2466.9,2466.8,5.00508942]
[1750906327017,1.781,2466.9,2466.8,0.9512545]
[1750906327312,1.781,2466.9,2466.7,5.45872134]
[1750906327615,1.781,2467.6,2467.1,0.7767]
[1750906327778,1.781,2468.0,2467.3,0.7767]
[1750906328395,10.0,2467.9,2467.6,4.0524981]
[1750906328590,1.781,2468.0,2467.3,0.7767]
[1750906328794,2.7452362,2468.0,2467.6,4.05245052]
[1750906329001,1.781,2468.0,2467.6,4.05245052]
[1750906329315,1.781,2468.0,2467.6,4.05249332]
[1750906329523,10.0,2467.9,2467.6,4.05249332]
[1750906329880,0.9642362,2467.9,2467.5,4.05262611]
[1750906330115,10.0,2467.9,2467.5,4.05262611]
[1750906330283,10.0,2467.9,2467.4,4.05281219]
[1750906330484,10.0,2467.9,2467.4,4.98936046]
[1750906330907,0.9642362,2467.9,2467.4,0.93654827]
[1750906331210,17.4942,2467.9,2467.0,0.7976]
[1750906331402,17.4942,2467.9,2467.2,4.05312098]
[1750906331603,0.96249636,2467.8,2467.2,4.05312098]
[1750906331780,0.96249636,2467.8,2467.1,4.05332907]
[1750906331980,0.96249636,2467.8,2467.1,4.53842198]
[1750906332180,8.517,2467.7,2467.2,4.05317769]
[1750906332794,8.517,2467.7,2467.3,4.05291649]
[1750906332985,8.517,2467.7,2467.2,4.0531122]
[1750906333696,8.517,2467.7,2467.3,4.05292937]
[1750906333895,8.517,2467.7,2467.4,4.05284027]
[1750906334209,0.7582,2467.9,2467.4,4.05284027]
[1750906334417,1.781,2467.6,2467.4,4.05284027]
[1750906334615,1.781,2467.5,2467.4,4.05284706]
[1750906334980,1.781,2467.8,2467.7,4.05235644]
[1750906335216,1.781,2467.8,2467.7,4.9426194]
[1750906335719,1.781,2467.8,2467.7,0.89026296]
[1750906335900,1.781,2467.8,2467.4,4.05271849]
[1750906336384,1.781,2467.8,2467.7,4.05235644]
[1750906337487,1.781,2467.8,2467.7,4.25475644]
[1750906337888,0.96185905,2468.2,2467.8,4.05217583]
[1750906338119,1.783,2467.9,2467.8,5.68348349]
[1750906338612,1.783,2467.9,2467.8,5.88588349]
[1750906338919,1.783,2467.9,2467.8,1.83370766]
[1750906339232,1.783,2467.9,2467.8,5.88589989]
[1750906339386,1.783,2468.0,2467.8,1.83370766]
[1750906339718,1.783,2468.0,2467.9,4.05202804]
[1750906339889,1.783,2468.0,2467.9,5.04583647]
[1750906340090,10.0,2468.3,2467.9,5.04583647]
[1750906340512,1.783,2468.2,2468.0,4.0518189]
[1750906340910,1.783,2468.2,2467.9,0.99380843]
[1750906340911,1.783,2468.2,2468.1,4.25409968]
[1750906341429,9.726,2468.4,2468.2,4.05151517]
[1750906341588,1.783,2468.3,2468.2,4.05151517]
[1750906342095,1.783,2468.3,2468.2,5.06425241]
[1750906343123,9.726,2468.4,2468.3,4.05137138]
[1750906343315,9.726,2468.4,2468.3,4.80197138]
[1750906343316,11.509,2468.4,2468.3,4.80197138]
[1750906343903,11.509,2468.4,2468.3,0.7506]
[1750906344218,11.509,2468.4,2468.2,0.2024]
[1750906346900,12.3224,2468.4,2468.2,0.2024]
[1750906349199,14.22734,2468.4,2468.2,0.2024]
[1750906349419,14.22734,2468.4,2468.0,0.2024]
[1750906350928,12.3224,2468.4,2468.0,0.2024]
[1750906351610,6.72,2468.3,2468.0,0.2024]
[1750906353798,1.783,2468.2,2467.9,4.05196072]
[1750906354223,1.783,2468.2,2468.1,0.2024]
[1750906355339,1.783,2468.2,2467.5,7.4802]
[1750906355509,1.783,2468.2,2468.0,0.2024]
[1750906355942,1.783,2468.2,2468.0,4.25425604]
[1750906356239,1.783,2468.2,2468.1,4.05169968]
[1750906356443,1.783,2468.2,2468.1,4.25409968]
[1750906356654,1.783,2468.2,2468.1,0.2024]
[1750906357130,9.726,2468.4,2468.1,4.25400063]
[1750906357327,1.783,2468.2,2468.1,5.16155166]
[1750906357542,1.783,2468.2,2468.1,4.95915166]
[1750906357742,1.783,2468.2,2468.1,5.16155166]
[1750906358246,4.04831969,2469.8,2468.6,0.7763]
[1750906358409,4.85591969,2471.5,2470.7,0.7763]
[1750906358616,0.96598712,2471.4,2470.7,11.73966485]
[1750906358969,0.96598712,2471.7,2470.7,0.7763]
[1750906359112,1.0297479,2471.9,2470.7,0.7763]
[1750906359113,0.2221479,2471.9,2471.8,4.04563476]
[1750906359307,0.2221479,2471.9,2471.7,4.04567638]
[1750906359645,0.2221479,2471.9,2470.8,0.29948485]
[1750906359847,0.2221479,2471.9,2470.6,10.0]
[1750906360009,6.926,2471.8,2470.7,1.11417291]
[1750906360210,11.54351479,2471.7,2470.8,4.04727213]
[1750906360433,11.54351479,2471.7,2470.7,0.33787291]
[1750906360434,10.84728304,2471.6,2470.7,0.33787291]
[1750906360638,18.819,2471.5,2470.7,0.33787291]
[1750906360856,10.84728304,2471.2,2470.7,0.33787291]
[1750906361060,10.0,2470.9,2470.7,0.33787291]
[1750906361261,13.82115304,2470.8,2470.7,0.33787291]
[1750906361451,23.82115304,2470.8,2470.7,0.33787291]
[1750906362256,30.75615304,2470.8,2470.7,0.33787291]
[1750906362641,31.30615304,2470.8,2470.7,0.33787291]
[1750906363241,35.35342517,2470.8,2470.7,0.33787291]
[1750906363461,31.30615304,2470.8,2470.7,0.33787291]
[1750906363652,31.30615304,2470.8,2469.9,4.04863813]
[1750906363948,10.0,2470.6,2469.9,4.04863813]
[1750906364447,10.0,2470.6,2469.9,4.04874066]
[1750906364652,10.0,2470.6,2469.5,0.7815]
[1750906364853,10.0,2470.6,2469.6,4.04923874]
[1750906365048,10.0,2470.6,2469.5,0.7815]
[1750906365376,8.813,2470.5,2469.7,4.04907478]
[1750906365670,1.78876851,2470.4,2470.0,4.04846593]
[1750906365874,1.08287,2470.8,2469.6,0.48310085]
[1750906365875,1.08287,2470.8,2470.1,4.04826122]
[1750906366074,1.89,2470.7,2470.5,4.04764209]
[1750906366463,1.89,2470.7,2470.5,4.04774957]
[1750906366671,2.879387,2470.7,2470.5,4.04774957]
[1750906366862,2.879387,2470.7,2470.6,4.04759977]
[1750906367064,0.989387,2470.7,2470.6,4.04759977]
[1750906367265,9.72,2471.1,2470.4,4.04792746]
[1750906367464,1.89,2471.0,2470.9,4.04699873]
[1750906367880,11.61,2471.1,2471.0,4.04694455]
[1750906368378,11.61,2471.1,2471.0,4.24854455]
[1750906370574,11.61,2471.1,2471.0,0.2016]
[1750906371149,9.72,2471.1,2471.0,0.2016]
[1750906371693,1.889,2471.2,2471.1,4.04678078]
[1750906371880,0.4237479,2471.9,2471.1,4.81365679]
[1750906372084,10.0,2471.7,2471.2,4.04650992]
[1750906372452,10.0,2471.7,2471.1,4.81362018]
[1750906372652,10.0,2471.7,2471.2,4.04661695]
[1750906373999,10.0,2471.7,2471.1,4.81365926]
[1750906374210,1.04287479,2471.8,2471.1,0.7669]
[1750906374352,1.889,2471.8,2471.7,4.04568913]
[1750906374548,2.1111479,2471.9,2471.3,2.6]
[1750906374751,3.29406269,2471.9,2471.3,2.6]
[1750906374985,2.1111479,2471.9,2471.6,4.04585397]
[1750906375166,2.1111479,2471.9,2471.3,2.6]
[1750906375360,2.1111479,2471.9,2471.1,4.81365591]
[1750906375562,2.1111479,2471.9,2471.5,4.04609592]
[1750906375988,2.1111479,2471.9,2471.6,4.04595681]
[1750906376189,2.1111479,2471.9,2471.3,4.04640314]
[1750906376392,3.29406269,2471.9,2471.5,4.04602173]
[1750906377195,2.1111479,2471.9,2471.7,4.04568121]
[1750906377367,2.1111479,2471.9,2471.2,4.04656169]
[1750906377368,2.1111479,2471.9,2471.8,4.04563476]
[1750906377574,0.2221479,2471.9,2471.8,4.83383476]
[1750906379066,0.2221479,2471.9,2471.7,4.04567125]
[1750906379401,0.2221479,2471.9,2471.8,4.04563476]
[1750906381577,0.2221479,2471.9,2471.8,5.54397623]
[1750906382083,0.2221479,2471.9,2471.8,5.74557623]
[1750906384528,0.2221479,2471.9,2471.8,15.74557623]
[1750906384814,0.09867719,2471.9,2471.8,17.12642027]
[1750906384973,0.09867719,2471.9,2471.8,19.72642027]
[1750906385865,0.09867719,2471.9,2471.8,19.17642027]
[1750906386071,0.09867719,2471.9,2471.8,19.28999878]
[1750906386267,0.09867719,2471.9,2471.8,26.17099878]
[1750906386499,0.09867719,2471.9,2471.8,26.39571619]
[1750906386805,0.09867719,2471.9,2471.8,26.3957205]
[1750906387228,0.09867719,2471.9,2471.8,26.39571665]
[1750906387508,0.09867719,2471.9,2471.8,26.39471665]
[1750906387672,0.09867719,2471.9,2471.8,26.39271665]
[1750906387874,0.09867719,2471.9,2471.8,26.16799878]
[1750906389202,0.09867719,2471.9,2471.8,19.83999878]
[1750906389408,0.09867719,2471.9,2471.8,16.16699878]
[1750906390374,0.09867719,2471.9,2471.8,9.28999878]
[1750906390577,0.09867719,2471.9,2471.8,16.16399878]
[1750906391474,0.09867719,2471.9,2471.8,26.71399878]
[1750906394417,0.09867719,2471.9,2471.8,26.70699878]
[1750906394618,0.09867719,2471.9,2471.8,19.83999878]
[1750906394820,0.09867719,2471.9,2471.8,20.04159878]
[1750906395404,0.09867719,2471.9,2471.8,26.90759878]
[1750906399024,0.09867719,2471.9,2471.8,37.75488182]
[1750906401426,0.7734,2473.6,2472.9,0.8199]
[1750906401631,0.7734,2473.6,2473.5,4.04276059]
[1750906402000,0.7734,2473.6,2473.5,4.24436059]
[1750906402429,0.7734,2473.6,2473.5,0.2016]
[1750906402633,0.7734,2473.6,2473.5,4.24445425]
[1750906403500,0.7734,2473.6,2473.5,5.7579981]
[1750906403934,1.873,2473.8,2473.5,5.75788616]
[1750906404148,0.7603,2473.9,2473.5,5.757977]
[1750906404298,0.7603,2473.9,2473.8,4.04236397]
[1750906404634,0.2221479,2474.4,2474.3,4.0415471]
[1750906404819,0.2221479,2474.4,2474.3,4.2431471]
[1750906405454,0.2221479,2474.4,2474.3,0.2016]
[1750906405628,2.8952479,2474.4,2473.6,6.872]
[1750906405797,1.33193269,2474.4,2474.1,0.2016]
[1750906406002,1.873,2474.3,2474.2,0.2016]
[1750906406201,2.8952479,2474.4,2474.2,4.243305]
[1750906406429,2.8952479,2474.4,2474.2,0.2016]
[1750906406643,1.0222479,2474.4,2474.2,4.24329224]
[1750906406811,1.0222479,2474.4,2474.2,0.2016]
[1750906407205,11.31177269,2474.4,2474.2,0.2016]
[1750906407842,11.0222479,2474.4,2474.2,0.2016]
[1750906408159,0.2221479,2474.4,2474.3,4.0415471]
[1750906409657,0.2221479,2474.4,2474.3,5.3594471]
[1750906409812,0.2016,2476.3,2475.8,4.03909847]
[1750906410005,3.97476336,2477.5,2475.8,4.03909847]
[1750906410006,1.001865,2477.9,2477.8,4.43083824]
[1750906410214,1.001865,2477.9,2477.8,5.27752378]
[1750906410408,1.001865,2477.9,2477.8,22.88852378]
[1750906410652,0.356865,2477.9,2477.8,24.92712935]
[1750906410947,0.356865,2477.9,2477.8,16.50222935]
[1750906411245,0.106865,2477.9,2477.8,23.78085466]
[1750906411454,0.00617092,2479.0,2478.5,0.7681]
[1750906411747,0.7572,2478.9,2477.8,4.33742437]
[1750906412047,10.4572,2478.9,2477.8,0.30160557]
[1750906412256,1.04633709,2478.8,2477.2,7.8921]
[1750906412417,1.04633709,2478.8,2477.4,0.55]
[1750906412605,11.04633709,2478.8,2477.3,7.13]
[1750906412810,11.04633709,2478.8,2476.3,4.03827174]
[1750906412811,0.7572,2478.3,2477.4,2.6]
[1750906413054,12.034,2478.2,2477.4,2.6]
[1750906413337,10.0,2478.0,2476.9,10.0]
[1750906413516,3.9946,2478.1,2476.8,10.0]
[1750906413517,2.034,2478.1,2476.8,10.0]
[1750906413830,2.034,2478.1,2477.2,4.0367014]
[1750906414036,4.79275711,2478.0,2476.7,11.21062844]
[1750906414223,0.7572,2478.0,2476.6,7.187]
[1750906414434,0.27912,2477.9,2476.7,0.79551]
[1750906414651,0.27912,2477.9,2477.2,4.03667946]
[1750906415009,0.27912,2477.9,2477.6,4.0360352]
[1750906415207,0.7572,2478.0,2477.7,0.33691835]
[1750906415448,0.7744,2478.7,2477.7,0.33691835]
[1750906415649,2.034,2478.5,2478.4,4.0348612]
[1750906415812,2.034,2478.7,2478.6,4.03453562]
[1750906416011,2.034,2478.7,2478.1,7.197]
[1750906416207,9.70117092,2479.0,2478.6,4.03440509]
[1750906416448,9.70117092,2479.0,2478.8,4.03409551]
[1750906416652,2.034,2478.9,2478.1,8.32024164]
[1750906416866,9.70117092,2479.0,2477.9,4.03567537]
[1750906417039,9.70117092,2479.0,2477.9,0.55]
[1750906417242,1.04920709,2478.9,2478.0,4.03551251]
[1750906417443,3.08320709,2478.9,2478.6,4.03450636]
[1750906417648,9.70117092,2479.0,2478.3,4.035024]
[1750906417945,2.034,2478.9,2478.8,4.03416737]
[1750906418151,2.034,2478.9,2478.7,4.03427725]
[1750906418576,2.034,2478.9,2478.6,4.03449166]
[1750906418771,2.034,2478.9,2478.6,4.0345295]
[1750906418962,2.034,2478.9,2478.3,7.192]
[1750906419157,0.00617092,2479.0,2478.9,4.03404735]
[1750906419470,2.03917092,2479.0,2478.3,8.31472752]
[1750906419773,0.00617092,2479.0,2478.9,4.03404735]
[1750906420070,0.00617092,2479.0,2478.9,4.23564735]
[1750906421143,1.93818525,2479.1,2479.0,4.03388463]
[1750906421954,2.032,2479.2,2479.0,4.03388463]
[1750906422270,0.2221479,2479.3,2479.2,4.03355921]
[1750906422473,0.2221479,2479.3,2479.1,0.2016]
[1750906423573,0.2221479,2479.3,2479.0,4.03378377]
[1750906423780,0.1212479,2479.3,2479.1,4.0337092]
[1750906423954,0.1212479,2479.3,2479.0,4.03382434]
[1750906424153,0.1212479,2479.3,2478.9,4.03393978]
[1750906424354,2.1532479,2479.3,2478.5,4.0346984]
[1750906424554,2.7787,2480.0,2478.7,0.7592]
[1750906424555,2.005,2480.0,2478.7,0.7592]
[1750906424762,3.97476336,2484.3,2481.1,0.5]
[1750906425073,13.12544801,2485.8,2485.5,4.02321027]
[1750906425269,0.2372972,2485.9,2485.5,4.02321027]
[1750906425270,0.1774382,2485.9,2485.8,10.0]
[1750906425469,8.572009,2487.3,2486.6,2.7645118]
[1750906425470,7.364,2487.3,2486.6,2.7645118]
[1750906425651,4.5994882,2487.3,2487.2,4.02058539]
[1750906425851,5.2566994,2487.3,2486.7,4.02139381]
[1750906426073,5.2566994,2487.3,2487.2,4.02058539]
[1750906426269,5.2566994,2487.3,2486.4,2.009957]
[1750906426270,5.2566994,2487.3,2486.5,0.7592]
[1750906426867,5.2566994,2487.3,2486.4,1.206654]
[1750906427461,5.2566994,2487.3,2485.9,10.801]
[1750906427462,5.2566994,2487.3,2486.2,10.0]
[1750906427661,5.2566994,2487.3,2485.9,10.801]
[1750906427967,3.151,2487.2,2485.9,0.801]
[1750906428483,3.9558,2487.2,2485.1,0.8014]
[1750906428870,5.2566994,2487.3,2486.7,4.02134499]
[1750906429052,5.78236934,2487.3,2486.1,4.02236434]
[1750906429394,0.005,2488.0,2487.9,4.01945415]
[1750906429680,0.005,2488.0,2487.0,9.361]
[1750906429893,0.005,2488.0,2486.3,9.672]
[1750906429894,0.005,2488.0,2487.7,4.01962123]
[1750906430099,0.005,2488.0,2487.9,14.01945415]
[1750906430251,0.005,2488.0,2487.0,9.472]
[1750906430450,0.005,2488.0,2486.9,0.8014]
[1750906430651,0.005,2488.0,2487.9,4.01945415]
[1750906430873,0.005,2488.0,2487.9,4.42139957]
[1750906431082,0.005,2488.0,2487.9,4.79645415]
[1750906431252,0.005,2488.0,2487.7,4.01967144]
[1750906431456,0.005,2488.0,2487.9,4.01945415]
[1750906431867,0.005,2488.0,2487.9,14.01945415]
[1750906432059,10.0,2488.8,2488.4,14.84094651]
[1750906432264,0.8198,2490.6,2489.0,10.0]
[1750906432466,0.04014,2491.0,2490.1,4.01590297]
[1750906432677,0.04014,2491.0,2490.9,4.01461319]
[1750906432873,0.04014,2491.0,2490.9,4.78911319]
[1750906433088,0.04014,2491.0,2490.9,16.08221019]
[1750906433259,0.33423664,2492.9,2490.4,0.7745]
[1750906433456,0.7873,2492.7,2490.4,0.7745]
[1750906433801,0.7873,2492.7,2492.0,4.01271839]
[1750906433802,3.945,2492.6,2492.0,4.01271839]
[1750906433954,9.7965368,2492.8,2491.0,24.338792]
[1750906433955,0.1335368,2492.8,2491.0,24.338792]
[1750906434154,0.1335368,2492.8,2490.7,7.904633]
[1750906434385,0.0835368,2492.8,2492.7,4.0117142]
[1750906435091,0.0835368,2492.8,2492.7,32.6555132]
[1750906435384,3.50991553,2493.0,2492.9,14.01139235]
[1750906435717,3.50991553,2493.0,2492.9,17.67948735]
[1750906435718,0.21592529,2493.0,2492.9,17.67948735]
[1750906435902,9.92328501,2495.3,2492.7,0.79]
[1750906436218,14.00150203,2496.0,2492.1,10.002]
[1750906436219,0.005,2496.0,2494.9,4.00817668]
[1750906436415,0.005,2496.0,2494.9,3.80636422]
[1750906436884,9.641,2495.4,2494.2,0.8035]
[1750906437087,10.0,2495.3,2493.2,0.7644]
[1750906437417,10.0,2493.9,2491.7,0.7644]
[1750906437583,10.0,2493.3,2491.4,4.01367333]
[1750906437782,9.92328501,2492.8,2490.3,0.8315]
[1750906438012,10.0,2493.1,2490.3,0.8315]
[1750906438319,0.7644,2492.2,2489.7,0.8315]
[1750906438619,4.01013199,2493.7,2489.1,4.52740715]
[1750906438620,1.18734083,2497.7,2496.0,4.00641025]